fUST/lending_fUST_20251001
["ID","MTS","AMOUNT","RATE_DAILY","PERIOD"]
[388681478,1759317053861,-1901.59,0.00020821,2]
[388681479,1759317053871,-1599.46,0.00020821,2]
[388681480,1759317053881,-1409.89,0.00020821,2]
[388681481,1759317053891,-500.0,0.00020821,2]
[388681482,1759317053900,-1391.76,0.00020821,2]
[388681483,1759317053910,-1276.92,0.00020821,2]
[388681484,1759317053921,-1463.75,0.00020821,2]
[388681485,1759317053935,-500.0,0.00020821,2]
[388681486,1759317053946,-1929.73,0.00020821,2]
[388681487,1759317053956,-500.0,0.00020821,2]
[388681488,1759317053966,-500.0,0.00020821,2]
[388681489,1759317053976,-634.44,0.00020821,2]
[388681490,1759317053986,-500.0,0.00020821,2]
[388681491,1759317053995,-500.0,0.00020821,2]
[388681492,1759317054006,-1282.7,0.00020821,2]
[388681493,1759317054016,-503.5,0.00020821,2]
[388681494,1759317054026,-3235.12,0.00020821,2]
[388681495,1759317054035,-702.01,0.00020821,2]
[388681496,1759317054046,-500.0,0.00020821,2]
[388681497,1759317054056,-500.0,0.00020821,2]
[388681498,1759317054066,-900.33,0.00020821,2]
[388681499,1759317054075,-1436.59,0.00020821,2]
[388681500,1759317054086,-1567.18,0.00020821,2]
[388681501,1759317054096,-1291.97,0.00020821,2]
[388681502,1759317054106,-724.52,0.00020821,2]
[388681503,1759317054116,-1262.27,0.00020821,2]
[388681504,1759317054126,-1096.42,0.00020821,2]
[388681505,1759317054136,-1993.91,0.00020821,2]
[388681506,1759317054145,-4458.68,0.00020821,2]
[388681507,1759317054155,-2741.98,0.00020821,2]
[388681508,1759317054165,-500.0,0.00020821,2]
[388681509,1759317054175,-894.69,0.00020821,2]
[388681510,1759317054184,-293.01368846,0.00020821,2]
[388681511,1759317054194,-2029.79,0.00020821,2]
[388681512,1759317054203,-500.0,0.00020821,2]
[388681513,1759317054213,-1890.66,0.00020821,2]
[388681514,1759317054223,-1696.84,0.00020821,2]
[388681515,1759317054232,-570.26371985,0.00020821,2]
[388681516,1759317054242,-625.37,0.00020821,2]
[388681517,1759317054251,-1616.75,0.00020821,2]
[388681518,1759317054260,-1295.16,0.00020821,2]
[388681519,1759317054269,-266.85440724,0.00020821,2]
[388681520,1759317054278,-930.81,0.00020821,2]
[388681521,1759317054287,-722.38,0.00020821,2]
[388681522,1759317054295,-708.03,0.00020821,2]
[388681523,1759317054305,-894.38,0.00020821,2]
[388681524,1759317054315,-2043.57,0.00020821,2]
[388681525,1759317054324,-2322.33,0.00020821,2]
[388681526,1759317054334,-1984.49,0.00020821,2]
[388681527,1759317054344,-500.0,0.00020821,2]
[388681528,1759317054354,-514.31450363,0.00020821,2]
[388681529,1759317054363,-3566.33,0.00020821,2]
[388681530,1759317054373,-1612.42,0.00020821,2]
[388681531,1759317054384,-500.0,0.00020821,2]
[388681532,1759317054394,-1047.91,0.00020821,2]
[388681533,1759317054404,-825.25,0.00020821,2]
[388681534,1759317054413,-648.53,0.00020821,2]
[388681535,1759317054423,-500.0,0.00020821,2]
[388681536,1759317054433,-1782.18,0.00020821,2]
[388681537,1759317054442,-2218.49,0.00020821,2]
[388681538,1759317054452,-513.65154835,0.00020821,2]
[388681539,1759317054466,-519.63,0.00020821,2]
[388681540,1759317054476,-2881.83,0.00020821,2]
[388681541,1759317054485,-3729.6,0.00020821,2]
[388681542,1759317054495,-1365.21,0.00020821,2]
[388681543,1759317054506,-886.48,0.00020821,2]
[388681544,1759317054516,-500.0,0.00020821,2]
[388681545,1759317054526,-500.0,0.00020821,2]
[388681546,1759317054539,-1025.0,0.00020822,2]
[388681547,1759317054548,-500.0,0.00020822,2]
[388681548,1759317054558,-160.0,0.00020848,2]
[388681549,1759317054567,-3000.0,0.00020866,2]
[388681550,1759317054577,-1547.67995103,0.00020868,2]
[388681551,1759317054586,-1500.0,0.00020868,2]
[388681552,1759317054596,-1500.0,0.00020868,2]
[388681553,1759317054606,-1500.0,0.00020868,2]
[388681554,1759317054615,-152.27091551,0.00020873,2]
[388681555,1759317054624,-420.0,0.00020891,2]
[388681556,1759317054634,-420.0,0.00020891,2]
[388681557,1759317054644,-1680.0,0.00020892,2]
[388681558,1759317054653,-1680.0,0.00020991,2]
[388681559,1759317054662,-1500.0,0.00021068,2]
[388681560,1759317054673,-1500.0,0.00021068,2]
[388681561,1759317054685,-254.25735415,0.00021068,2]
[388681562,1759317054702,-1500.0,0.00021068,2]
[388681563,1759317054712,-717.23970029,0.00021068,2]
[388681564,1759317054721,-1500.0,0.00021068,2]
[388681565,1759317054731,-1500.0,0.00021068,2]
[388681566,1759317054740,-1500.0,0.00021068,2]
[388681567,1759317054749,-1500.0,0.00021068,2]
[388681568,1759317054759,-1500.0,0.00021068,2]
[388681569,1759317054768,-500.92613551,0.00021068,2]
[388681570,1759317054778,-1500.0,0.00021068,2]
[388681571,1759317054787,-1500.0,0.00021068,2]
[388681572,1759317054797,-1449.27209535,0.00021068,2]
[388681573,1759317054807,-1507.43507387,0.00021068,2]
[388681574,1759317054816,-501.62996691,0.00021068,2]
[388681575,1759317054826,-923.56275779,0.00021068,2]
[388681576,1759317054835,-1500.0,0.00021068,2]
[388681577,1759317054844,-1500.0,0.00021068,2]
[388681578,1759317054854,-1500.0,0.00021068,2]
[388681579,1759317054863,-168.0,0.00021073,2]
[388681580,1759317054873,-300.14293,0.00021074,2]
[388681581,1759317054883,-155.0,0.00021095,2]
[388681582,1759317054893,-500.0,0.00021095,2]
[388681583,1759317054903,-500.0,0.00021095,2]
[388681584,1759317054913,-500.0,0.00021095,2]
[388681585,1759317054923,-768.6,0.00021095,2]
[388681586,1759317054933,-1043.81,0.00021095,2]
[388681587,1759317054942,-680.43,0.00021095,2]
[388681588,1759317054952,-599.69,0.00021095,2]
[388681589,1759317054961,-500.0,0.00021095,2]
[388681590,1759317054971,-500.0,0.00021095,2]
[388681591,1759317054980,-2013.15,0.00021095,2]
[388681592,1759317054990,-500.0,0.00021095,2]
[388681593,1759317054999,-1685.89,0.00021095,2]
[388681594,1759317055009,-500.0,0.00021095,2]
[388681595,1759317055019,-973.29,0.00021095,2]
[388681596,1759317055029,-888.35,0.00021095,2]
[388681597,1759317055039,-1151.0,0.00021095,2]
[388681598,1759317055048,-500.0,0.00021095,2]
[388681599,1759317055058,-507.85,0.00021095,2]
[388681600,1759317055067,-629.1,0.00021095,2]
[388681601,1759317055076,-524.79,0.00021095,2]
[388681602,1759317055086,-602.75,0.00021095,2]
[388681603,1759317055096,-995.24,0.00021095,2]
[388681604,1759317055106,-302.18881876,0.00021095,2]
[388681605,1759317055115,-1011.98,0.00021095,2]
[388681606,1759317055125,-1073.62,0.00021095,2]
[388681607,1759317055134,-500.0,0.00021095,2]
[388681608,1759317055143,-543.52,0.00021095,2]
[388681609,1759317055152,-841.38,0.00021095,2]
[388681610,1759317055162,-500.0,0.00021095,2]
[388681611,1759317055171,-996.71,0.00021095,2]
[388681612,1759317055182,-500.0,0.00021095,2]
[388681613,1759317055191,-867.72,0.00021095,2]
[388681614,1759317055201,-995.04,0.00021095,2]
[388681615,1759317055210,-777.48,0.00021095,2]
[388681616,1759317055219,-2460.48,0.00021095,2]
[388681617,1759317055230,-649.93,0.00021095,2]
[388681618,1759317055239,-500.0,0.00021095,2]
[388681619,1759317055249,-2327.31,0.00021095,2]
[388681620,1759317055258,-500.0,0.00021095,2]
[388681621,1759317055267,-1453.46,0.00021095,2]
[388681622,1759317055277,-500.0,0.00021095,2]
[388681623,1759317055287,-1480.74,0.00021095,2]
[388681624,1759317055296,-500.0,0.00021095,2]
[388681625,1759317055305,-1028.71,0.00021095,2]
[388681626,1759317055314,-500.0,0.00021095,2]
[388681627,1759317055324,-1189.04,0.00021095,2]
[388681628,1759317055333,-500.0,0.00021095,2]
[388681629,1759317055343,-500.0,0.00021095,2]
[388681630,1759317055352,-259.8863966,0.00021095,2]
[388681631,1759317055361,-500.0,0.00021095,2]
[388681632,1759317055371,-500.0,0.00021095,2]
[388681633,1759317055380,-558.59,0.00021095,2]
[388681634,1759317055389,-614.9,0.00021095,2]
[388681635,1759317055400,-500.0,0.00021095,2]
[388681636,1759317055409,-804.99,0.00021095,2]
[388681637,1759317055418,-500.0,0.00021095,2]
[388681638,1759317055428,-500.0,0.00021095,2]
[388681639,1759317055438,-3246.79,0.00021095,2]
[388681640,1759317055447,-500.0,0.00021095,2]
[388681641,1759317055457,-730.12,0.00021095,2]
[388681642,1759317055469,-2515.61,0.00021095,2]
[388681643,1759317055479,-500.0,0.00021095,2]
[388681644,1759317055488,-1017.09,0.00021095,2]
[388681645,1759317055497,-1451.28,0.00021095,2]
[388681646,1759317055509,-500.0,0.00021095,2]
[388681647,1759317055519,-500.0,0.00021095,2]
[388681648,1759317055528,-500.0,0.00021095,2]
[388681649,1759317055540,-500.0,0.00021095,2]
[388681650,1759317055549,-1045.88,0.00021095,2]
[388681651,1759317055560,-1355.68,0.00021095,2]
[388681652,1759317055569,-500.0,0.00021095,2]
[388681653,1759317055580,-500.0,0.00021095,2]
[388681654,1759317055591,-662.04,0.00021095,2]
[388681655,1759317055601,-779.29,0.00021095,2]
[388681656,1759317055612,-701.44,0.00021095,2]
[388681657,1759317055622,-630.0,0.00021095,2]
[388681658,1759317055632,-574.52467975,0.00021095,2]
[388681659,1759317055641,-766.39,0.00021095,2]
[388681660,1759317055651,-594.95,0.00021095,2]
[388681661,1759317055660,-580.58784574,0.00021095,2]
[388681662,1759317055669,-500.0,0.00021095,2]
[388681663,1759317055679,-1058.77,0.00021095,2]
[388681664,1759317055688,-2449.77,0.00021095,2]
[388681665,1759317055698,-2057.41,0.00021095,2]
[388681666,1759317055708,-732.43,0.00021095,2]
[388681667,1759317055718,-500.0,0.00021095,2]
[388681668,1759317055728,-214.34462039,0.00021095,2]
[388681669,1759317055738,-580.83299751,0.00021095,2]
[388681670,1759317055747,-768.4,0.00021095,2]
[388681671,1759317055761,-500.0,0.00021095,2]
[388681672,1759317055770,-2309.76,0.00021095,2]
[388681673,1759317055780,-515.12,0.00021095,2]
[388681674,1759317055790,-3328.27,0.00021095,2]
[388681675,1759317055799,-929.38,0.00021095,2]
[388681676,1759317055808,-1925.77,0.00021095,2]
[388681677,1759317055818,-4887.39,0.00021095,2]
[388681678,1759317055957,-3370.98,0.00021095,2]
[388681679,1759317055967,-500.0,0.00021095,2]
[388681680,1759317055977,-500.0,0.00021095,2]
[388681681,1759317055986,-942.98,0.00021095,2]
[388681682,1759317055995,-3722.29,0.00021095,2]
[388681683,1759317056005,-1554.88,0.00021095,2]
[388681684,1759317056015,-1915.11,0.00021095,2]
[388681685,1759317056024,-742.84,0.00021095,2]
[388681686,1759317056033,-696.44,0.00021095,2]
[388681687,1759317056043,-906.43,0.00021095,2]
[388681688,1759317056053,-500.0,0.00021095,2]
[388681689,1759317056062,-500.0,0.00021095,2]
[388681690,1759317056072,-699.56,0.00021095,2]
[388681691,1759317056081,-500.0,0.00021095,2]
[388681692,1759317056090,-1027.8,0.00021095,2]
[388681693,1759317056100,-10998.14,0.00021095,2]
[388681694,1759317056112,-4328.59,0.00021095,2]
[388681695,1759317056124,-552.19,0.00021095,2]
[388681696,1759317056133,-500.0,0.00021095,2]
[388681697,1759317056142,-1701.35,0.00021095,2]
[388681698,1759317056151,-500.0,0.00021095,2]
[388681699,1759317056161,-500.0,0.00021095,2]
[388681700,1759317056170,-845.74,0.00021095,2]
[388681701,1759317056179,-2129.15,0.00021095,2]
[388681702,1759317056189,-886.07,0.00021095,2]
[388681703,1759317056198,-751.92,0.00021095,2]
[388681704,1759317056207,-1106.74,0.00021095,2]
[388681705,1759317056216,-1595.39,0.00021095,2]
[388681706,1759317056225,-919.52,0.00021095,2]
[388681707,1759317056235,-2034.16,0.00021095,2]
[388681708,1759317056244,-500.0,0.00021095,2]
[388681709,1759317056253,-500.0,0.00021095,2]
[388681710,1759317056263,-721.29,0.00021095,2]
[388681711,1759317056272,-1924.06,0.00021095,2]
[388681712,1759317056281,-1901.59,0.00021095,2]
[388681713,1759317056291,-1599.46,0.00021095,2]
[388681714,1759317056300,-1409.89,0.00021095,2]
[388681715,1759317056309,-500.0,0.00021095,2]
[388681716,1759317056318,-1391.76,0.00021095,2]
[388681717,1759317056327,-1276.92,0.00021095,2]
[388681718,1759317056337,-1463.75,0.00021095,2]
[388681719,1759317056347,-500.0,0.00021095,2]
[388681720,1759317056356,-1929.73,0.00021095,2]
[388681721,1759317056365,-500.0,0.00021095,2]
[388681722,1759317056375,-207.74462741,0.00021095,2]
[388681723,1759317056384,-634.44,0.00021095,2]
[388681724,1759317056393,-500.0,0.00021095,2]
[388681725,1759317056402,-500.0,0.00021095,2]
[388681726,1759317056412,-2305.4,0.00021095,2]
[388681727,1759317056421,-1282.7,0.00021095,2]
[388681728,1759317056430,-503.5,0.00021095,2]
[388681729,1759317056439,-3235.12,0.00021095,2]
[388681730,1759317056448,-702.01,0.00021095,2]
[388681731,1759317056458,-500.0,0.00021095,2]
[388681732,1759317056471,-500.0,0.00021095,2]
[388681733,1759317056480,-900.33,0.00021095,2]
[388681734,1759317056490,-1436.59,0.00021095,2]
[388681735,1759317056498,-1567.18,0.00021095,2]
[388681736,1759317056509,-1291.97,0.00021095,2]
[388681737,1759317056519,-724.52,0.00021095,2]
[388681738,1759317056528,-1262.27,0.00021095,2]
[388681739,1759317056539,-1096.42,0.00021095,2]
[388681740,1759317056548,-1993.91,0.00021095,2]
[388681741,1759317056559,-4458.68,0.00021095,2]
[388681742,1759317056568,-2741.98,0.00021095,2]
[388681743,1759317056578,-500.0,0.00021095,2]
[388681744,1759317056587,-894.69,0.00021095,2]
[388681745,1759317056596,-2029.79,0.00021095,2]
[388681746,1759317056606,-560.89896895,0.00021095,2]
[388681747,1759317056615,-1890.66,0.00021095,2]
[388681748,1759317056625,-1696.84,0.00021095,2]
[388681749,1759317056635,-625.37,0.00021095,2]
[388681750,1759317056645,-1616.75,0.00021095,2]
[388681751,1759317056654,-1295.16,0.00021095,2]
[388681752,1759317056663,-930.81,0.00021095,2]
[388681753,1759317056673,-722.38,0.00021095,2]
[388681754,1759317056682,-708.03,0.00021095,2]
[388681755,1759317056692,-894.38,0.00021095,2]
[388681756,1759317056702,-2043.57,0.00021095,2]
[388681757,1759317056711,-2322.33,0.00021095,2]
[388681758,1759317056720,-1984.49,0.00021095,2]
[388681759,1759317056730,-500.0,0.00021095,2]
[388681760,1759317056739,-3566.33,0.00021095,2]
[388681761,1759317056748,-1612.42,0.00021095,2]
[388681762,1759317056757,-500.0,0.00021095,2]
[388681763,1759317056767,-1047.91,0.00021095,2]
[388681764,1759317056776,-825.25,0.00021095,2]
[388681765,1759317056786,-648.53,0.00021095,2]
[388681766,1759317056795,-500.0,0.00021095,2]
[388681767,1759317056805,-1782.18,0.00021095,2]
[388681768,1759317056815,-2218.49,0.00021095,2]
[388681769,1759317056824,-519.63,0.00021095,2]
[388681770,1759317056833,-2881.83,0.00021095,2]
[388681771,1759317056842,-3729.6,0.00021095,2]
[388681772,1759317056851,-1365.21,0.00021095,2]
[388681773,1759317056861,-886.48,0.00021095,2]
[388681774,1759317056870,-1025.0,0.00021096,2]
[388681775,1759317056879,-500.0,0.00021096,2]
[388681776,1759317056889,-2000.0,0.00021116,2]
[388681777,1759317056898,-2000.0,0.00021116,2]
[388681778,1759317056907,-2000.0,0.00021116,2]
[388681779,1759317056916,-2000.0,0.00021116,2]
[388681780,1759317056925,-2000.0,0.00021116,2]
[388681781,1759317056935,-2642.14,0.0002112,2]
[388681782,1759317056945,-435.44405886,0.0002114,2]
[388681783,1759317056954,-406.55163653,0.00021194,2]
[388681784,1759317056963,-168.0,0.00021263,2]
[388681785,1759317056972,-168.0,0.00021271,2]
[388681786,1759317056982,-3000.0,0.000213,2]
[388681787,1759317056991,-600.0,0.00021302,2]
[388681788,1759317057000,-168.0,0.00021309,2]
[388681789,1759317057010,-3000.0,0.0002131,2]
[388681790,1759317057019,-3000.0,0.0002132,2]
[388681791,1759317057029,-3000.0,0.0002133,2]
[388681792,1759317057038,-3000.0,0.0002134,2]
[388681793,1759317057047,-3000.0,0.0002135,2]
[388681794,1759317057057,-151.0,0.00021358,2]
[388681795,1759317057066,-3000.0,0.0002136,2]
[388681796,1759317057076,-1570.62320656,0.00021368,2]
[388681797,1759317057086,-530.96419827,0.00021368,2]
[388681798,1759317057097,-403.11535146,0.00021368,2]
[388681799,1759317057106,-1500.0,0.00021368,2]
[388681800,1759317057116,-1500.0,0.00021368,2]
[388681801,1759317057126,-1500.0,0.00021368,2]
[388681802,1759317057135,-273.31146475,0.00021368,2]
[388681803,1759317057144,-1500.0,0.00021368,2]
[388681804,1759317057154,-1500.0,0.00021368,2]
[388681805,1759317057163,-1061.02850399,0.00021368,2]
[388681806,1759317057172,-439.51144712,0.00021369,2]
[388681807,1759317057181,-500.0,0.00021369,2]
[388681808,1759317057190,-500.0,0.00021369,2]
[388681809,1759317057199,-768.6,0.00021369,2]
[388681810,1759317057208,-1043.81,0.00021369,2]
[388681811,1759317057217,-680.43,0.00021369,2]
[388681812,1759317057226,-599.69,0.00021369,2]
[388681813,1759317057235,-500.0,0.00021369,2]
[388681814,1759317057244,-500.0,0.00021369,2]
[388681815,1759317057254,-2013.15,0.00021369,2]
[388681816,1759317057267,-552.34011774,0.00021369,2]
[388681817,1759317057278,-1685.89,0.00021369,2]
[388681818,1759317057289,-500.0,0.00021369,2]
[388681819,1759317057297,-973.29,0.00021369,2]
[388681820,1759317057307,-888.35,0.00021369,2]
[388681821,1759317057316,-1151.0,0.00021369,2]
[388681822,1759317057325,-550.82874959,0.00021369,2]
[388681823,1759317057334,-507.85,0.00021369,2]
[388681824,1759317057343,-629.1,0.00021369,2]
[388681825,1759317057352,-524.79,0.00021369,2]
[388681826,1759317057361,-602.75,0.00021369,2]
[388681827,1759317057370,-995.24,0.00021369,2]
[388681828,1759317057379,-1011.98,0.00021369,2]
[388681829,1759317057389,-1073.62,0.00021369,2]
[388681830,1759317057398,-500.0,0.00021369,2]
[388681831,1759317057407,-543.52,0.00021369,2]
[388681832,1759317057416,-841.38,0.00021369,2]
[388681833,1759317057425,-500.0,0.00021369,2]
[388681834,1759317057434,-996.71,0.00021369,2]
[388681835,1759317057443,-500.0,0.00021369,2]
[388681836,1759317057452,-867.72,0.00021369,2]
[388681837,1759317057467,-995.04,0.00021369,2]
[388681838,1759317057476,-777.48,0.00021369,2]
[388681839,1759317057485,-2460.48,0.00021369,2]
[388681840,1759317057493,-649.93,0.00021369,2]
[388681841,1759317057503,-500.0,0.00021369,2]
[388681842,1759317057512,-2327.31,0.00021369,2]
[388681843,1759317057521,-500.0,0.00021369,2]
[388681844,1759317057530,-1453.46,0.00021369,2]
[388681845,1759317057540,-1480.74,0.00021369,2]
[388681846,1759317057549,-500.0,0.00021369,2]
[388681847,1759317057559,-500.0,0.00021369,2]
[388681848,1759317057569,-1028.71,0.00021369,2]
[388681849,1759317057578,-500.0,0.00021369,2]
[388681850,1759317057587,-1189.04,0.00021369,2]
[388681851,1759317057595,-500.0,0.00021369,2]
[388681852,1759317057604,-500.0,0.00021369,2]
[388681853,1759317057614,-500.0,0.00021369,2]
[388681854,1759317057623,-519.51345884,0.00021369,2]
[388681855,1759317057632,-558.59,0.00021369,2]
[388681856,1759317057641,-614.9,0.00021369,2]
[388681857,1759317057650,-500.0,0.00021369,2]
[388681858,1759317057660,-804.99,0.00021369,2]
[388681859,1759317057669,-500.0,0.00021369,2]
[388681860,1759317057677,-500.0,0.00021369,2]
[388681861,1759317057687,-3246.79,0.00021369,2]
[388681862,1759317057696,-622.22339498,0.00021369,2]
[388681863,1759317057706,-730.12,0.00021369,2]
[388681864,1759317057716,-2515.61,0.00021369,2]
[388681865,1759317057725,-500.0,0.00021369,2]
[388681866,1759317057734,-1017.09,0.00021369,2]
[388681867,1759317057743,-1451.28,0.00021369,2]
[388681868,1759317057752,-500.0,0.00021369,2]
[388681869,1759317057761,-500.0,0.00021369,2]
[388681870,1759317057770,-500.0,0.00021369,2]
[388681871,1759317057779,-211.58987569,0.00021369,2]
[388681872,1759317057788,-1045.88,0.00021369,2]
[388681873,1759317057797,-1355.68,0.00021369,2]
[388681874,1759317057806,-500.0,0.00021369,2]
[388681875,1759317057816,-500.0,0.00021369,2]
[388681876,1759317057826,-662.04,0.00021369,2]
[388681877,1759317057835,-779.29,0.00021369,2]
[388681878,1759317057844,-701.44,0.00021369,2]
[388681879,1759317057854,-630.0,0.00021369,2]
[388681880,1759317057863,-766.39,0.00021369,2]
[388681881,1759317057872,-594.95,0.00021369,2]
[388681882,1759317057882,-500.0,0.00021369,2]
[388681883,1759317057891,-1058.77,0.00021369,2]
[388681884,1759317057900,-2449.77,0.00021369,2]
[388681885,1759317057909,-2057.41,0.00021369,2]
[388681886,1759317057920,-732.43,0.00021369,2]
[388681887,1759317057929,-500.0,0.00021369,2]
[388681888,1759317057938,-768.4,0.00021369,2]
[388681889,1759317057947,-500.0,0.00021369,2]
[388681890,1759317057956,-2309.76,0.00021369,2]
[388681891,1759317057965,-515.12,0.00021369,2]
[388681892,1759317057974,-3328.27,0.00021369,2]
[388681893,1759317057983,-929.38,0.00021369,2]
[388681894,1759317057991,-1925.77,0.00021369,2]
[388681895,1759317058002,-4887.39,0.00021369,2]
[388681896,1759317058010,-3370.98,0.00021369,2]
[388681897,1759317058019,-500.0,0.00021369,2]
[388681898,1759317058028,-500.0,0.00021369,2]
[388681899,1759317058037,-942.98,0.00021369,2]
[388681900,1759317058046,-3722.29,0.00021369,2]
[388681901,1759317058055,-1554.88,0.00021369,2]
[388681902,1759317058064,-1915.11,0.00021369,2]
[388681903,1759317058073,-742.84,0.00021369,2]
[388681904,1759317058082,-696.44,0.00021369,2]
[388681905,1759317058091,-906.43,0.00021369,2]
[388681906,1759317058100,-500.0,0.00021369,2]
[388681907,1759317058109,-500.0,0.00021369,2]
[388681908,1759317058118,-699.56,0.00021369,2]
[388681909,1759317058127,-1027.8,0.00021369,2]
[388681910,1759317058136,-10998.14,0.00021369,2]
[388681911,1759317058145,-4328.59,0.00021369,2]
[388681912,1759317058154,-552.19,0.00021369,2]
[388681913,1759317058163,-500.0,0.00021369,2]
[388681914,1759317058172,-1701.35,0.00021369,2]
[388681915,1759317058291,-500.0,0.00021369,2]
[388681916,1759317058301,-500.0,0.00021369,2]
[388681917,1759317058312,-845.74,0.00021369,2]
[388681918,1759317058321,-2129.15,0.00021369,2]
[388681919,1759317058330,-886.07,0.00021369,2]
[388681920,1759317058339,-751.92,0.00021369,2]
[388681921,1759317058348,-1106.74,0.00021369,2]
[388681922,1759317058357,-1595.39,0.00021369,2]
[388681923,1759317058366,-919.52,0.00021369,2]
[388681924,1759317058376,-2034.16,0.00021369,2]
[388681925,1759317058385,-500.0,0.00021369,2]
[388681926,1759317058394,-500.0,0.00021369,2]
[388681927,1759317058404,-721.29,0.00021369,2]
[388681928,1759317058415,-1924.06,0.00021369,2]
[388681929,1759317058424,-1901.59,0.00021369,2]
[388681930,1759317058433,-1599.46,0.00021369,2]
[388681931,1759317058443,-1409.89,0.00021369,2]
[388681932,1759317058451,-500.0,0.00021369,2]
[388681933,1759317058463,-1391.76,0.00021369,2]
[388681934,1759317058473,-1276.92,0.00021369,2]
[388681935,1759317058482,-1463.75,0.00021369,2]
[388681936,1759317058491,-500.0,0.00021369,2]
[388681937,1759317058500,-1929.73,0.00021369,2]
[388681938,1759317058510,-500.0,0.00021369,2]
[388681939,1759317058520,-634.44,0.00021369,2]
[388681940,1759317058530,-500.0,0.00021369,2]
[388681941,1759317058540,-500.0,0.00021369,2]
[388681942,1759317058549,-2305.4,0.00021369,2]
[388681943,1759317058558,-1282.7,0.00021369,2]
[388681944,1759317058567,-503.5,0.00021369,2]
[388681945,1759317058576,-3235.12,0.00021369,2]
[388681946,1759317058586,-702.01,0.00021369,2]
[388681947,1759317058595,-500.0,0.00021369,2]
[388681948,1759317058603,-500.0,0.00021369,2]
[388681949,1759317058612,-900.33,0.00021369,2]
[388681950,1759317058621,-1436.59,0.00021369,2]
[388681951,1759317058631,-1567.18,0.00021369,2]
[388681952,1759317058641,-1291.97,0.00021369,2]
[388681953,1759317058650,-724.52,0.00021369,2]
[388681954,1759317058659,-1262.27,0.00021369,2]
[388681955,1759317058668,-1096.42,0.00021369,2]
[388681956,1759317058677,-1993.91,0.00021369,2]
[388681957,1759317058687,-4458.68,0.00021369,2]
[388681958,1759317058697,-2741.98,0.00021369,2]
[388681959,1759317058706,-500.0,0.00021369,2]
[388681960,1759317058715,-894.69,0.00021369,2]
[388681961,1759317058724,-2029.79,0.00021369,2]
[388681962,1759317058734,-1890.66,0.00021369,2]
[388681963,1759317058743,-1696.84,0.00021369,2]
[388681964,1759317058752,-625.37,0.00021369,2]
[388681965,1759317058762,-1616.75,0.00021369,2]
[388681966,1759317058771,-1295.16,0.00021369,2]
[388681967,1759317058780,-930.81,0.00021369,2]
[388681968,1759317058789,-722.38,0.00021369,2]
[388681969,1759317058798,-708.03,0.00021369,2]
[388681970,1759317058808,-894.38,0.00021369,2]
[388681971,1759317058817,-2043.57,0.00021369,2]
[388681972,1759317058826,-2322.33,0.00021369,2]
[388681973,1759317058835,-1984.49,0.00021369,2]
[388681974,1759317058844,-500.0,0.00021369,2]
[388681975,1759317058853,-3566.33,0.00021369,2]
[388681976,1759317058862,-1612.42,0.00021369,2]
[388681977,1759317058871,-500.0,0.00021369,2]